bitfinex-derivatives/quotes_ETHF0:USTF0_20260303
["timestamp","ask_amount","ask_price","bid_price","bid_amount"]
[1772529912809,10.02039154,1959.0,1958.4,8.00852164]
[1772529913006,10.02039154,1959.0,1958.5,8.923]
[1772529913205,10.02039154,1959.0,1958.5,16.99388337]
[1772529913406,0.00369931,1959.0,1958.6,8.07088337]
[1772529915117,10.02039154,1959.0,1958.6,7.91816727]
[1772529915417,10.02039154,1959.0,1958.3,7.91841478]
[1772529915712,10.02039154,1959.0,1957.6,11.67832407]
[1772529915713,0.00369931,1959.0,1958.5,7.90903622]
[1772529915908,0.00369931,1959.0,1958.7,7.90903622]
[1772529916110,10.01669223,1959.2,1958.3,7.90903622]
[1772529916306,10.01669223,1959.2,1958.4,16.84103622]
[1772529916611,10.01669223,1959.2,1958.0,0.25539]
[1772529916612,10.01669223,1959.2,1958.5,17.10670993]
[1772529916812,10.01669223,1959.2,1958.6,8.934]
[1772529917916,10.02130174,1959.2,1958.6,8.934]
[1772529919111,9.23145575,1958.7,1958.3,8.943]
[1772529919411,9.23145575,1958.7,1958.2,8.943]
[1772529919809,9.23145575,1958.7,1957.9,8.17525762]
[1772529920007,9.23145575,1958.7,1958.0,8.945]
[1772529920410,9.23145575,1958.7,1957.3,11.67832407]
[1772529920411,9.23145575,1957.7,1956.8,4.30395718]
[1772529920614,9.23145575,1957.1,1956.1,9.66682465]
[1772529920815,9.23145575,1957.1,1956.2,18.61582465]
[1772529921017,9.23145575,1957.1,1956.3,8.949]
[1772529921412,9.23679719,1957.1,1956.3,8.95373455]
[1772529921613,9.23679719,1957.1,1956.4,13.97078183]
[1772529922220,9.23679719,1957.1,1956.4,9.66682465]
[1772529922517,9.23679719,1957.1,1956.5,4.30395718]
[1772529922718,9.23679719,1957.1,1956.5,13.97078183]
[1772529922918,9.23679719,1957.1,1956.6,13.97078183]
[1772529923115,9.23679719,1957.1,1956.6,4.30395718]
[1772529923320,9.23679719,1957.1,1956.7,8.957]
[1772529924824,9.23679719,1957.1,1956.6,4.30395718]
[1772529925024,9.23679719,1957.1,1956.3,9.6715592]
[1772529925325,9.23679719,1957.1,1956.4,18.63282465]
[1772529926128,9.23679719,1957.1,1956.3,0.00473455]
[1772529926326,9.23145575,1956.9,1956.3,8.97473455]
[1772529927920,9.48701575,1956.9,1956.0,8.98]
[1772529929027,9.48701575,1956.9,1956.1,9.66682465]
[1772529931328,9.48701575,1956.9,1956.2,18.66082465]
[1772529931930,9.48701575,1956.9,1956.2,27.1410209]
[1772529932126,9.48701575,1956.9,1956.3,9.66682465]
[1772529932530,9.23145575,1956.9,1956.3,9.66682465]
[1772529934029,9.23145575,1956.9,1956.0,0.00635843]
[1772529934030,9.23145575,1956.9,1956.1,9.002]
[1772529934429,0.00534144,1957.1,1956.2,9.92245465]
[1772529935032,0.00534144,1957.1,1956.7,9.66682465]
[1772529935227,0.00534144,1957.1,1956.9,9.66682465]
[1772529935425,9.23145575,1957.4,1956.9,18.67382465]
[1772529935629,9.23145575,1957.7,1957.0,9.66682465]
[1772529936236,9.23145575,1957.5,1956.3,9.66682465]
[1772529936432,9.23145575,1957.3,1956.5,9.66682465]
[1772529936632,9.23145575,1957.1,1956.6,9.011]
[1772529937337,9.23145575,1957.1,1956.6,18.67782465]
[1772529937932,9.23145575,1957.1,1956.7,9.66682465]
[1772529938132,9.23145575,1957.1,1956.8,8.48019625]
[1772529938744,9.23145575,1957.1,1956.7,9.02]
[1772529940434,6.38616588,1956.9,1956.1,9.66682465]
[1772529940641,6.38616588,1956.9,1956.2,9.029]
[1772529940943,6.38616588,1956.9,1956.2,18.69582465]
[1772529941235,0.25553,1957.0,1956.3,9.66682465]
[1772529941442,6.37782092,1957.3,1956.3,9.66682465]
[1772529942938,6.37782092,1957.3,1956.5,9.66682465]
[1772529943243,6.37782092,1957.3,1956.6,18.70782465]
[1772529943743,6.37782092,1957.3,1956.6,9.66682465]
[1772529943942,6.37782092,1957.3,1956.7,9.044]
[1772529944143,6.37782092,1957.3,1956.7,9.045]
[1772529944545,6.37782092,1957.3,1956.5,9.66682465]
[1772529944744,6.37782092,1957.3,1956.6,9.049]
[1772529944945,0.25548,1957.4,1956.7,9.66682465]
[1772529945145,6.52380998,1957.4,1956.7,9.66682465]
[1772529946747,6.52380998,1957.4,1956.8,9.056]
[1772529946942,6.21442635,1957.0,1956.6,9.057]
[1772529947148,6.46995635,1957.1,1956.7,9.66682465]
[1772529947345,6.46995635,1957.1,1956.6,18.72482465]
[1772529947849,6.46995635,1957.1,1956.4,11.45890689]
[1772529948050,6.46995635,1957.1,1956.1,11.45890689]
[1772529949249,6.2197781,1956.9,1956.1,20.52490689]
[1772529949641,6.78116124,1956.8,1956.2,11.45890689]
[1772529950047,6.21989353,1956.8,1956.2,11.45890689]
[1772529950645,6.21989353,1956.8,1956.0,0.00635843]
[1772529950850,6.21989353,1956.8,1956.0,20.53626532]
[1772529951047,6.21989353,1956.8,1956.1,11.45890689]
[1772529951251,6.47546353,1956.8,1956.1,11.45890689]
[1772529951451,12.77429147,1956.7,1956.1,20.53190689]
[1772529951648,5.78613987,1956.7,1956.1,20.53190689]
[1772529951952,5.78613987,1956.7,1956.2,11.45890689]
[1772529953453,0.25557,1956.8,1956.2,11.45890689]
[1772529953649,5.96397582,1956.8,1956.2,11.45890689]
[1772529953954,5.69478684,1957.0,1956.2,11.45890689]
[1772529954153,4.18384471,1957.1,1956.2,11.45890689]
[1772529954154,5.69478684,1956.8,1956.2,11.45890689]
[1772529957758,5.95034684,1956.8,1956.1,20.55990689]
[1772529957959,5.95034684,1956.8,1956.1,11.45890689]
[1772529958258,4.18384471,1957.0,1955.9,11.45890689]
[1772529958259,6.78213564,1956.6,1955.9,11.45890689]
[1772529958451,6.38544892,1956.4,1955.9,11.45890689]
[1772529959257,6.38544892,1956.4,1955.9,11.46476445]
[1772529960254,6.38544892,1956.4,1955.9,0.00585756]
[1772529960552,7.01389703,1956.2,1955.7,11.45890689]
[1772529960756,7.01389703,1956.0,1955.4,20.57590689]
[1772529960954,7.04777447,1955.8,1954.4,0.25586]
[1772529961154,7.04777447,1955.8,1955.3,11.45890689]
[1772529961458,7.05213548,1955.8,1955.3,20.58371627]
[1772529961660,7.63243925,1956.2,1955.4,11.45890689]
[1772529962061,13.04062229,1956.2,1955.4,11.45890689]
[1772529962360,7.63680026,1956.0,1955.3,20.58971627]
[1772529962859,0.00407217,1956.0,1955.4,11.45890689]
[1772529963755,7.44984804,1956.0,1955.5,11.45890689]
[1772529964359,7.44984804,1956.0,1955.5,9.139]
[1772529964563,7.44984804,1956.0,1955.3,20.60371627]
[1772529965860,0.00407217,1956.0,1955.4,11.45890689]
[1772529966662,14.42172342,1956.4,1955.4,11.45890689]
[1772529966952,0.2556,1956.5,1955.4,11.45890689]
[1772529967358,7.74783179,1956.8,1955.4,11.71464689]
[1772529967558,7.7535334,1956.8,1955.4,11.71464689]
[1772529968161,7.9875467,1956.7,1955.4,11.71464689]
[1772529969261,0.25557,1956.7,1955.4,11.71464689]
[1772529970265,7.62128247,1956.6,1955.6,11.45890689]
[1772529970463,7.62128247,1956.6,1955.7,9.162]
[1772529970660,7.62128247,1956.6,1955.3,0.00480938]
[1772529970661,7.67871929,1956.2,1955.8,10.92438689]
[1772529970867,7.67871929,1956.2,1955.5,11.45890689]
[1772529971263,8.21323929,1956.0,1955.5,11.45890689]
[1772529971664,0.25565,1956.1,1955.5,11.45890689]
[1772529972773,8.49721011,1956.1,1955.5,11.45890689]
[1772529973068,8.49721011,1956.1,1955.5,20.62790689]
[1772529973472,8.77188962,1955.9,1955.3,20.63371627]
[1772529973767,9.02753962,1956.1,1955.4,11.45890689]
[1772529974862,9.04220816,1956.1,1955.4,11.45890689]
[1772529975268,8.78655816,1956.3,1955.4,11.45890689]
[1772529975764,8.76902788,1956.1,1955.4,11.45890689]
[1772529975968,8.76902788,1956.1,1955.4,20.63390689]
[1772529976171,8.76902788,1956.1,1955.4,11.45890689]
[1772529976372,8.76902788,1956.1,1955.4,20.63490689]
[1772529976773,0.25566,1956.0,1955.5,11.45890689]
[1772529977171,9.02433838,1956.0,1955.3,11.46371627]
[1772529977376,0.25566,1956.0,1955.3,11.46371627]
[1772529977579,8.79951488,1956.4,1955.3,11.46371627]
[1772529977876,15.77977237,1956.3,1955.3,11.46371627]
[1772529978076,8.81217276,1956.3,1955.3,11.46371627]
[1772529978673,9.17804554,1956.2,1955.3,11.46371627]
[1772529978978,9.17804554,1956.2,1955.5,10.83529823]
[1772529979476,9.17804554,1956.2,1955.3,9.18680938]
[1772529979675,9.17804554,1956.2,1955.3,20.02210761]
[1772529979876,9.17804554,1956.2,1955.4,10.83529823]
[1772529980276,8.88382683,1955.9,1955.4,10.83529823]
[1772529981176,9.49118375,1955.7,1955.3,0.00480938]
[1772529981375,9.49118375,1955.7,1955.1,10.83529823]
[1772529981574,9.49118375,1955.7,1954.4,10.83529823]
[1772529981575,9.49149744,1955.3,1954.4,10.83529823]
[1772529982075,9.76464209,1955.2,1954.4,20.02029823]
[1772529982373,9.76464209,1955.2,1954.5,10.83529823]
[1772529982580,9.7701416,1955.2,1954.6,10.83529823]
[1772529983282,0.26126951,1955.2,1954.6,10.83529823]
[1772529983783,0.00549951,1955.2,1954.6,10.83529823]
[1772529984269,0.00549951,1955.2,1954.4,0.00425804]
[1772529984270,9.52202671,1955.2,1954.4,20.02855627]
[1772529984475,9.52202671,1955.2,1954.5,10.83529823]
[1772529985580,9.5103232,1955.0,1954.5,10.83529823]
[1772529985780,9.5103232,1955.0,1954.4,20.02855627]
[1772529986284,9.5103232,1955.0,1954.2,0.91470366]
[1772529986285,9.4897728,1954.8,1954.2,11.75000189]
[1772529987077,0.25581,1954.9,1954.2,11.75000189]
[1772529987276,0.25581,1954.9,1954.2,11.75501601]
[1772529987583,9.74833173,1954.9,1954.2,11.75501601]
[1772529988181,9.46977287,1955.1,1954.2,11.75501601]
[1772529988383,9.83851933,1955.2,1954.2,11.75501601]
[1772529988685,9.83851933,1955.2,1954.4,10.83529823]
[1772529989381,9.81002575,1954.6,1952.5,6.30057]
[1772529989586,9.42187797,1954.4,1953.4,10.83529823]
[1772529990285,9.46304669,1953.8,1952.5,10.83529823]
[1772529990486,0.00641284,1953.8,1952.8,10.83529823]
[1772529990786,0.00641284,1953.8,1953.0,10.83529823]
[1772529990988,0.00641284,1953.8,1953.2,10.83529823]
[1772529991186,0.00641284,1953.8,1953.4,10.83529823]
[1772529991387,10.27861233,1953.8,1953.2,20.03629823]
[1772529991578,10.27861233,1953.8,1953.2,20.03729823]
[1772529991782,10.27861233,1953.8,1953.3,10.83529823]
[1772529992086,0.00641284,1953.8,1953.3,10.83529823]
[1772529992282,0.00641284,1953.8,1953.1,10.83529823]
[1772529992283,10.25409287,1953.8,1953.1,10.83529823]
[1772529992482,10.25409287,1953.8,1951.4,13.22861532]
[1772529992483,10.00397237,1952.9,1951.6,10.83529823]
[1772529992784,11.52023311,1952.7,1951.6,10.83529823]
[1772529993087,9.9806137,1952.7,1951.6,10.83529823]
[1772529993585,10.89988038,1952.6,1951.6,10.84098068]
[1772529993787,6.30068,1952.5,1951.6,10.84098068]
[1772529993986,9.95605113,1952.2,1951.3,10.83529823]
[1772529994293,15.40605731,1952.4,1951.3,10.83529823]
[1772529994484,6.83040781,1952.6,1951.3,10.83529823]
[1772529994686,6.83040781,1952.2,1951.3,10.83529823]
[1772529995190,6.80885599,1952.0,1951.3,0.00380151]
[1772529995387,13.49485599,1951.9,1951.3,10.83909974]
[1772529995583,0.49862483,1951.9,1951.3,10.83909974]
[1772529995789,6.6920332,1952.2,1951.3,10.83909974]
[1772529995790,13.50319502,1952.2,1951.3,10.83909974]
[1772529995993,6.78906062,1952.1,1951.3,10.83909974]
[1772529996291,12.33585765,1952.1,1951.3,10.83909974]
[1772529997596,5.17195171,1952.0,1951.3,10.83909974]
[1772529998092,0.82315942,1951.9,1951.3,10.83909974]
[1772529998291,5.14956764,1952.1,1951.3,10.83909974]
[1772529998494,10.67045697,1952.1,1951.3,10.83909974]
[1772529999691,5.1962659,1952.0,1951.3,10.83909974]
[1772530000089,5.1962659,1951.8,1951.3,0.00380151]
[1772530000294,6.04533302,1951.9,1951.3,10.83909974]
[1772530000492,5.1962659,1951.9,1951.3,10.83909974]
[1772530000695,12.61357561,1951.8,1951.3,0.00380151]
[1772530000896,5.92657561,1951.8,1951.3,10.83909974]
[1772530001095,5.07750849,1951.8,1951.3,10.83909974]
[1772530001298,5.07750849,1951.8,1951.3,0.00380151]
[1772530001496,5.08156944,1951.6,1951.3,0.00380151]
[1772530001687,5.08156944,1951.6,1951.1,10.83529823]
[1772530001887,5.08156944,1951.6,1950.1,0.012567]
[1772530001888,5.05450883,1951.3,1950.2,10.83529823]
[1772530002094,6.687,1951.3,1950.2,10.83529823]
[1772530002494,11.85151767,1951.3,1950.2,10.83529823]
[1772530002793,5.13770952,1951.1,1950.2,10.83994322]
[1772530003196,6.687,1951.3,1950.2,10.83994322]
[1772530003197,5.93175977,1951.0,1950.2,10.83994322]
[1772530003495,10.53119389,1950.9,1949.8,10.84786627]
[1772530003699,10.53119389,1950.9,1950.0,10.83529823]
[1772530003998,11.32524414,1950.9,1950.1,10.84786627]
[1772530004300,11.32524414,1950.9,1950.1,0.01256804]
[1772530004301,10.53119389,1950.7,1950.1,0.01256804]
[1772530004605,10.53119389,1950.5,1950.1,0.00614455]
[1772530004789,16.10710009,1950.6,1950.2,10.83529823]
[1772530004992,6.69358074,1950.7,1950.2,10.83529823]
[1772530005195,6.69358074,1950.7,1950.3,10.84786627]
[1772530005396,10.53119389,1950.0,1949.2,0.9246852]
[1772530005694,17.64915748,1949.9,1948.7,10.83529823]
[1772530005892,10.96015748,1949.9,1948.9,10.83529823]
[1772530006097,10.53119389,1949.9,1949.0,10.83529823]
[1772530006298,10.53119389,1949.9,1949.0,10.84077744]
[1772530006490,10.53119389,1950.2,1949.0,10.84077744]
[1772530006697,17.22019389,1950.5,1949.2,10.83529823]
[1772530006897,10.53119389,1950.5,1949.4,10.83529823]
[1772530007096,0.49737234,1950.4,1949.4,10.83529823]
[1772530007297,10.53677463,1950.7,1949.4,10.83529823]
[1772530007493,10.53677463,1950.7,1949.6,10.83529823]
[1772530007494,0.00558074,1950.7,1949.6,10.83529823]
[1772530007699,0.00558074,1950.7,1949.8,10.83529823]
[1772530008004,11.6730523,1950.7,1949.8,10.83529823]
[1772530008497,5.45839088,1950.6,1949.8,10.83529823]
[1772530008698,0.00558074,1950.7,1949.8,10.83529823]
[1772530009097,11.6730523,1950.7,1949.8,10.83529823]
[1772530009295,11.66747156,1950.5,1949.8,10.83529823]
[1772530009500,0.00558074,1950.7,1950.0,12.28469695]
[1772530009801,6.689,1951.5,1950.2,12.28469695]
[1772530010000,11.66747156,1951.5,1950.4,12.28469695]
[1772530010200,11.66747156,1951.5,1950.6,12.28469695]
[1772530010201,5.47571822,1951.4,1950.6,12.28469695]
[1772530010601,5.47934554,1951.4,1950.6,12.28873732]
[1772530010797,0.00362732,1951.4,1950.6,12.28873732]
[1772530012201,0.00362732,1951.4,1950.8,12.28469695]
[1772530013795,11.66747156,1951.8,1950.8,12.28469695]
[1772530014196,11.66747156,1951.6,1950.8,12.28469695]
[1772530014707,11.67231843,1951.6,1950.8,12.28469695]
[1772530014902,0.00484687,1951.6,1950.8,12.28469695]
[1772530015203,11.66747156,1952.0,1950.8,12.28469695]
[1772530016301,11.67369249,1952.0,1950.8,12.28469695]
[1772530017204,11.66747156,1951.8,1950.8,12.28469695]
[1772530017804,11.66747156,1951.7,1950.8,12.28469695]
[1772530018604,11.66747156,1951.5,1950.8,12.28469695]
[1772530018805,11.66747156,1951.5,1950.8,21.61469695]
[1772530020206,11.66747156,1951.3,1950.6,12.28873732]
[1772530020707,12.52576448,1951.4,1950.6,12.28873732]
[1772530020708,11.66747156,1951.1,1950.6,12.28873732]
[1772530021410,6.687,1951.4,1950.6,12.28873732]
[1772530021711,11.92373156,1951.5,1950.6,12.28873732]
[1772530022813,11.92373156,1951.5,1950.6,0.00404037]
[1772530022814,11.66747156,1951.2,1950.6,0.00404037]
[1772530023310,11.66747156,1951.2,1950.6,12.28873732]
[1772530023907,11.66747156,1951.0,1950.4,12.28469695]
[1772530024412,11.66747156,1950.6,1950.1,21.63669695]
[1772530024613,11.66747156,1950.6,1950.1,12.28469695]
[1772530025011,11.67231473,1950.6,1950.1,12.29019597]
[1772530025611,0.00484317,1950.6,1950.1,12.29019597]
[1772530025909,11.66747156,1951.1,1950.1,12.29019597]
[1772530026113,18.9694047,1951.0,1950.1,12.29019597]
[1772530026313,11.66747156,1951.0,1950.1,12.29019597]
[1772530026712,0.00432111,1951.0,1950.1,12.29019597]
[1772530027015,11.66747156,1951.5,1950.1,14.08625538]
[1772530027213,4.18384471,1951.6,1950.1,14.08625538]
[1772530027412,11.92371156,1951.7,1950.1,14.08625538]
[1772530027815,4.18384471,1952.1,1950.8,12.28469695]
[1772530028015,11.92364156,1952.2,1951.0,12.28469695]
[1772530028911,0.26052318,1952.2,1951.0,13.82431636]
[1772530029107,0.00435318,1952.2,1951.0,13.82431636]
[1772530030312,0.00435318,1952.2,1951.2,12.28469695]
[1772530030614,0.00435318,1952.2,1951.4,12.28469695]
[1772530030815,0.00435318,1952.2,1951.6,12.28469695]
[1772530031013,0.00435318,1952.2,1951.6,12.28889901]
[1772530031914,4.18384471,1952.6,1951.6,12.28889901]
[1772530032111,24.90154388,1952.8,1951.6,12.28889901]
[1772530032112,4.18384471,1952.7,1951.6,12.28889901]
[1772530032313,15.85131627,1952.9,1951.6,12.28889901]
[1772530032520,11.92355156,1952.9,1951.7,9.385]
[1772530032717,11.92731374,1952.9,1951.8,12.28469695]
[1772530033820,18.61331374,1952.9,1952.0,12.28469695]
[1772530034117,11.66747156,1952.8,1952.0,12.28469695]
[1772530034812,0.25984218,1952.9,1952.0,12.28469695]
[1772530035017,0.25984218,1952.9,1951.6,0.00420206]
[1772530035018,11.66747156,1952.4,1951.7,12.28469695]
[1772530035221,11.66747156,1952.4,1951.6,21.68889901]
[1772530035422,0.25615,1952.3,1951.7,12.28469695]
[1772530036216,11.92367156,1951.9,1951.2,12.28469695]
[1772530036415,0.2562,1951.9,1951.3,12.28469695]
[1772530037022,15.85131627,1952.3,1951.3,12.28469695]
[1772530037223,15.85131627,1952.3,1951.3,12.29061324]
[1772530037622,11.66747156,1952.3,1951.3,12.29061324]
[1772530037928,0.25616,1952.2,1951.5,11.62557275]
[1772530038124,12.1696561,1952.2,1951.5,11.62557275]
[1772530038415,12.1696561,1952.2,1951.3,11.63148904]
[1772530039023,11.9134961,1951.8,1951.1,11.62557275]
[1772530039525,0.2562,1951.9,1951.1,11.62557275]
[1772530039720,7.54138948,1951.9,1951.1,11.62557275]
[1772530039916,7.28518948,1951.9,1951.1,11.62557275]
[1772530040123,11.9134961,1952.2,1951.1,11.63185785]
[1772530040322,7.28765322,1952.1,1951.1,11.63185785]
[1772530040526,4.43998471,1952.4,1951.1,11.63185785]
[1772530040825,7.28907581,1952.3,1951.3,11.62557275]
[1772530041029,0.25984218,1952.9,1951.5,11.62557275]
[1772530041227,19.46403619,1952.9,1951.5,11.62557275]
[1772530041422,7.28823121,1952.8,1951.5,11.62557275]
[1772530041625,19.20172731,1952.8,1951.5,11.62557275]
[1772530041920,19.20172731,1952.8,1951.2,0.25629]
[1772530041921,11.9134961,1952.8,1951.7,11.62557275]
[1772530043027,0.25984218,1952.9,1951.7,11.62557275]
[1772530043822,0.00376218,1952.9,1951.7,11.62557275]
[1772530045026,12.1695061,1953.4,1951.9,13.16519216]
[1772530045227,12.1695061,1953.4,1952.1,11.62557275]
[1772530045429,7.27941413,1953.3,1952.1,11.62557275]
[1772530045625,12.1695061,1953.4,1952.1,11.62557275]
[1772530045926,12.17541748,1953.4,1952.1,11.62557275]
[1772530046317,11.9134961,1952.9,1951.4,11.62557275]
[1772530046525,11.9134961,1952.4,1951.4,11.62557275]
[1772530047227,11.9134961,1952.4,1951.6,11.62557275]
[1772530047520,12.1696161,1952.6,1951.6,11.62557275]
[1772530049221,0.25612,1952.6,1951.6,11.62557275]
[1772530049623,11.9134961,1952.8,1951.6,11.62557275]
[1772530050021,12.1695461,1953.1,1951.6,11.62557275]
[1772530053121,11.9134961,1952.6,1951.6,11.62557275]
[1772530053324,0.25612,1952.5,1951.6,11.62557275]
[1772530054028,12.1696161,1952.5,1951.6,11.62557275]
[1772530054619,0.25612,1952.5,1951.6,11.62557275]
[1772530055025,11.9134961,1952.9,1951.6,11.62557275]
[1772530056029,11.9134961,1952.4,1951.8,11.62557275]
[1772530056228,11.9134961,1952.4,1951.8,21.12757275]
[1772530056424,11.9134961,1952.4,1951.8,9.502]
[1772530056729,18.6004961,1952.8,1951.9,11.62557275]
[1772530057426,11.9134961,1952.7,1951.9,11.62557275]
[1772530058432,12.1696061,1952.6,1951.9,21.13257275]
[1772530058731,12.1696061,1952.6,1951.9,11.62557275]
[1772530058927,11.9134961,1952.1,1951.3,11.62557275]
[1772530059126,12.1696861,1952.0,1951.3,11.62557275]
[1772530059330,12.1743282,1952.0,1951.3,11.62557275]
[1772530060232,12.1697361,1951.7,1951.1,11.63185785]
[1772530062929,12.1697361,1951.7,1951.1,0.0062851]
[1772530063129,12.1697361,1951.7,1951.1,5.1e-06]
[1772530063925,12.1697361,1951.7,1951.0,9.525]
[1772530064332,11.9134961,1951.2,1950.4,11.62557275]
[1772530064732,11.9134961,1951.2,1949.8,0.25647]
[1772530064733,11.9134961,1950.8,1949.9,11.62557275]
[1772530064932,11.9134961,1951.0,1949.9,11.62991842]
[1772530065130,18.6024961,1951.0,1949.9,11.62991842]
[1772530065435,11.9134961,1951.0,1949.9,11.62991842]
[1772530065831,11.9134961,1951.4,1949.9,11.62991842]
[1772530066532,11.9134961,1951.2,1949.9,11.62991842]
[1772530067430,0.25628,1951.3,1949.9,11.62991842]
[1772530067431,12.1697761,1951.3,1949.9,11.62991842]
[1772530067735,18.6024961,1951.5,1949.9,11.62991842]
[1772530067930,11.9134961,1951.5,1949.9,11.62991842]
[1772530068534,11.9134961,1951.5,1950.1,10.74337644]
[1772530069933,10.90522809,1951.7,1950.1,10.74337644]
[1772530070334,10.90522809,1951.5,1950.1,10.74337644]
[1772530071930,6.691,1951.8,1950.1,10.74337644]
[1772530071931,10.90522809,1951.7,1950.2,0.25642]
[1772530072134,10.90522809,1951.7,1950.3,10.74337644]
[1772530072336,10.90522809,1951.7,1950.5,10.74337644]
[1772530074936,10.90522809,1951.5,1950.5,10.74337644]
[1772530077237,10.90522809,1951.3,1950.5,10.74337644]
[1772530077939,0.25626,1951.4,1950.5,10.74337644]
[1772530078133,11.16148809,1951.4,1950.5,10.74337644]
[1772530079342,10.90522809,1951.1,1950.3,10.74337644]
[1772530080144,0.25629,1951.2,1950.3,10.74337644]
[1772530080447,11.16151809,1951.2,1950.3,10.74337644]
[1772530080745,10.90522809,1951.2,1950.3,10.74337644]
[1772530080945,10.90522809,1951.6,1950.3,10.74337644]
[1772530081754,10.90522809,1951.4,1950.3,10.74337644]
[1772530082047,10.90522809,1951.4,1950.5,10.74337644]
[1772530082245,10.90522809,1951.4,1950.7,10.74337644]
[1772530082447,10.90522809,1951.4,1950.0,10.74337644]
[1772530082643,10.90522809,1951.4,1950.5,10.74337644]
[1772530082950,10.90522809,1951.2,1950.5,10.74337644]
[1772530083349,10.90522809,1951.2,1950.5,20.31337644]
[1772530083549,10.90522809,1951.2,1950.5,9.57]
[1772530083950,10.90522809,1951.0,1950.3,10.74337644]
[1772530084252,10.90522809,1950.8,1950.2,9.572]
[1772530084752,10.90522809,1950.8,1949.9,0.00434567]
[1772530084753,10.90522809,1950.6,1949.9,10.74772211]
[1772530084944,10.91104585,1950.6,1949.9,10.74772211]
[1772530086748,10.90522809,1950.4,1949.7,10.74337644]
[1772530086947,6.69781776,1950.6,1949.7,10.74337644]
[1772530086948,10.90522809,1950.2,1949.7,9.579]
[1772530087546,10.90522809,1950.2,1949.5,10.74337644]
[1772530087747,10.90522809,1950.2,1949.5,10.74899827]
[1772530087953,10.90522809,1950.0,1949.5,0.00562183]
[1772530088150,10.90522809,1950.0,1949.2,9.581]
[1772530088151,10.90522809,1950.0,1949.2,20.32437644]
[1772530088350,10.90522809,1950.0,1949.3,10.74337644]
[1772530089249,10.90522809,1950.0,1949.3,0.00410414]
[1772530089449,10.90522809,1949.8,1949.3,0.00410414]
[1772530089645,11.16171809,1949.7,1948.3,10.74337644]
[1772530089851,11.16171809,1949.7,1948.8,10.74337644]
[1772530090053,11.16171809,1949.7,1948.6,10.74337644]
[1772530090255,10.90522809,1949.4,1948.5,10.74337644]
[1772530090756,10.90522809,1949.3,1948.5,10.74875123]
[1772530091256,10.90522809,1948.9,1948.5,4.79e-06]
[1772530091452,10.90522809,1948.9,1948.4,9.32026033]
[1772530091651,10.90522809,1948.9,1948.4,9.12548799]
[1772530092253,10.90522809,1948.9,1947.9,10.74337644]
[1772530092453,10.9092728,1948.9,1948.0,9.592]
[1772530092862,10.90522809,1948.7,1948.0,10.74337644]
[1772530093254,10.90522809,1948.7,1948.1,10.74337644]
[1772530094156,10.90522809,1948.7,1947.9,10.74731695]
[1772530094462,0.00404471,1948.9,1947.9,10.74731695]
[1772530094662,10.90522809,1949.3,1947.9,11.00403695]
[1772530095062,10.90522809,1949.3,1948.1,10.74337644]
[1772530095562,6.695,1949.7,1948.1,10.74337644]
[1772530095762,10.90522809,1949.6,1948.1,10.74337644]
[1772530096156,13.00933477,1949.7,1948.1,10.74337644]
[1772530096157,10.90522809,1949.4,1948.1,10.74337644]
[1772530096660,10.90522809,1949.2,1948.1,10.74337644]
[1772530096860,10.90522809,1949.2,1948.3,10.74337644]
[1772530097761,9.91834311,1949.0,1948.1,10.02589507]
[1772530099366,9.91834311,1949.0,1948.0,9.612]
[1772530099556,6.3107,1949.4,1947.9,19.64783558]
[1772530099557,9.91834311,1948.8,1947.9,19.64783558]
[1772530099760,9.91834311,1948.8,1948.0,10.02589507]
[1772530099960,9.91834311,1948.8,1947.9,0.00394051]
[1772530100163,9.91834311,1948.6,1947.9,0.00394051]
[1772530100662,9.91834311,1948.6,1948.0,10.02589507]
[1772530101068,9.91834311,1948.6,1947.9,0.00394051]
[1772530101261,9.91834311,1948.6,1947.7,10.02589507]
[1772530101262,9.91834311,1948.2,1946.5,10.02589507]
[1772530101464,9.91834311,1947.6,1946.5,10.02589507]
[1772530101662,9.91834311,1947.6,1946.6,10.02589507]
[1772530102067,9.91834311,1948.1,1946.6,10.28278507]
[1772530102261,9.92241822,1948.1,1946.6,10.28670983]
[1772530102462,9.91834311,1947.7,1946.6,10.02981983]
[1772530102659,13.01055,1948.0,1945.4,10.02589507]
[1772530102660,9.91834311,1946.8,1945.4,10.02589507]
[1772530103067,9.91834311,1946.6,1945.4,10.02589507]
[1772530103369,9.91834311,1946.6,1945.4,10.28294507]
[1772530103565,9.924959,1946.6,1945.4,10.28856137]
[1772530104463,9.924959,1946.6,1945.4,10.03151137]
[1772530104769,15.74440888,1946.5,1945.6,10.02589507]
[1772530104959,9.91834311,1946.4,1945.6,10.02589507]
[1772530105165,9.91834311,1946.3,1945.4,0.0056163]
[1772530105364,9.91834311,1946.3,1945.1,10.02589507]
[1772530105565,6.32012,1946.5,1944.2,7.4297242]
[1772530105566,9.91834311,1946.1,1944.9,10.02589507]
[1772530105871,9.91834311,1946.1,1945.1,10.02589507]
[1772530106371,5.9545456,1946.0,1945.1,10.03155395]
[1772530106565,9.91834311,1946.1,1945.1,10.03155395]
[1772530106768,9.91834311,1946.1,1945.3,10.02589507]
[1772530107167,9.91834311,1946.5,1945.3,10.02589507]
[1772530107567,9.91834311,1946.4,1945.3,10.02589507]
[1772530108268,9.924959,1946.6,1945.5,10.02589507]
[1772530108570,0.00661589,1946.6,1945.5,10.02589507]
[1772530109169,0.00661589,1946.6,1945.6,9.664]
[1772530109368,0.00661589,1946.6,1945.7,10.02589507]
[1772530109769,9.924959,1946.6,1945.7,10.02589507]
[1772530111071,9.924959,1946.6,1945.9,10.02589507]
[1772530111475,9.924959,1946.6,1945.7,10.02589507]
[1772530112568,0.00661589,1946.6,1945.7,10.02589507]
[1772530112777,9.91834311,1947.0,1945.9,10.02589507]
[1772530112976,9.91834311,1947.0,1946.1,10.02589507]
[1772530113176,9.91834311,1947.0,1946.2,19.70789507]
[1772530113476,9.91834311,1947.0,1946.4,10.02589507]
[1772530113673,0.00476357,1947.0,1946.6,10.02589507]
[1772530113873,9.91834311,1947.3,1946.6,10.02589507]
[1772530114473,9.91834311,1947.7,1946.6,10.02589507]
[1772530114876,9.92339056,1947.7,1946.6,10.02962937]
[1772530115077,0.00504745,1947.7,1946.6,10.28651937]
[1772530115275,9.92339056,1947.7,1946.6,10.28651937]
[1772530116074,9.92339056,1947.7,1946.6,10.02962937]
[1772530116283,9.91834311,1947.5,1946.7,19.72089507]
[1772530116474,9.91834311,1947.5,1946.8,10.02589507]
[1772530116980,0.00504745,1947.7,1946.8,10.02589507]
[1772530116981,9.92339056,1947.7,1946.8,10.02589507]
[1772530117672,9.92339056,1947.7,1946.8,19.72689507]
[1772530117872,9.92339056,1947.7,1946.8,9.701]
[1772530118579,9.92339056,1947.7,1946.9,9.704]
[1772530118779,9.92339056,1947.7,1946.7,10.02589507]
[1772530118976,9.92339056,1947.7,1946.8,9.705]
[1772530120384,10.18014056,1947.7,1946.8,9.705]
[1772530120574,9.91834311,1947.5,1946.8,9.705]
[1772530120776,9.91834311,1947.3,1946.6,0.0037343]